[Event "Asian Amateur-ch Open 2022"]
[Site "Muscat"]
[Date "2022.10.04"]
[Round "8.4"]
[White "Shahali, Milad"]
[Black "Thapa, Krishna"]
[Result "1-0"]
[ECO "B47"]
[WhiteElo "1910"]
[BlackElo "1928"]
[Annotator "TA"]
[PlyCount "113"]
[EventDate "2022.09.29"]
[EventType "swiss"]
[EventCountry "OMN"]
[SourceTitle "playchess.com"]
[Source "ChessBase"]
[SourceQuality "1"]
[TimeControl "5400+30"]

{[%evp 9,113,22,43,31,25,18,33,20,27,27,182,179,451,427,599,584,563,462,900,849,772,393,397,375,362,398,500,332,527,530,775,781,772,777,642,592,598,590,602,595,604,599,608,603,577,495,486,453,483,489,482,400,548,530,572,459,647,586,727,391,772,752,976,922,972,945,1080,556,552,533,1495,496,500,478,493,483,568,539,568,553,602,563,636,461,397,385,324,176,158,153,378,349,289,258,295,290,262,254,835,827,906,809,29974,11331,29984,2133]} 1. e4 {[%emt 0:00:03]} c5 {[%emt 0:00:06]} 2. Nf3 {[%emt 0:00:06][%cal Bg1f3,Bf3d4,Bd4b5,Bb5d6][%mdl 32]} e6 {[%emt 0:00:02]} 3. d4 {[%emt 0:00:07]} cxd4 {[%emt 0:00:01]} 4. Nxd4 {[%emt 0:00:07]} Nc6 {[%emt 0:00:06]} 5. Nc3 {[%emt 0:00:07]} Qc7 {[%emt 0:00:23]} 6. Qd3 {[%emt 0:00:23] B47: Sicilian: Taimanov: 5 Nc3 Qc7 6 f4, 6 g3 and 6 Be2.} Nf6 {[%emt 0:00:28]} 7. Ndb5 {[%emt 0:00:22]} Qb8 {[%emt 0:02:02]} 8. Qg3 {[%emt 0:00:17] White is slightly better.} d6 $1 {[%emt 0:13:36]} 9. Be3 {[%emt 0:00:57]} e5 $2 {[%emt 0:21:28]} (9... Nh5 $11 10. Qh4 Nf6) 10. O-O-O $18 {[%emt 0:13:45][%cal Ob5d6] [#]} g6 $146 {[%emt 0:07:20]} (10... a6 $2 11. Nxd6+ $1 {[%mdl 512]} Bxd6 12. Qxg7 $18) (10... Nh5 11. Qg5 a6) ({Predecessor:} 10... Be6 11. Nxd6+ Bxd6 12. Qxg7 Rg8 13. Qxf6 a6 14. Nd5 b5 15. Nb6 Ra7 16. Nc8 Rd7 17. Nxd6+ Rxd6 18. Be2 Rxd1+ 19. Rxd1 Rxg2 20. Qh8+ Ke7 21. Bc5+ {1-0 (21) Kugler,F (2222)-Alquist,E (1961) Reinstorf 2022}) 11. Qh4 {[%emt 0:04:00]} Bg7 {[%emt 0:15:04]} (11... Ng8 {might work better.} 12. Nd5 Be6 13. Ndc7+ Kd7 14. Nxe6 fxe6) 12. Nxd6+ {[%emt 0:00:46]} Kf8 {[%emt 0:00:06]} 13. Bc5 {[%emt 0:07:07] Nf5+ would kill now.} b6 {[%emt 0:07:16]} (13... Be6 $142 14. Nd5 Nd7) 14. Ba3 {[%emt 0:01:28]} Kg8 {[%emt 0:01:21]} 15. Bc4 {[%emt 0:03:44]} Be6 {[%emt 0:00:16]} 16. Bxe6 {[%emt 0:00:41]} fxe6 {[%emt 0:00:02]} 17. Qh3 {[%emt 0:00:16]} Nd8 {[%emt 0:01:38]} 18. Ndb5 {[%emt 0:17:20][%cal Od1d8]} h5 {[%emt 0:05:02]} (18... Qb7 {keeps fighting.} 19. Kb1 a6) 19. Be7 {[%emt 0:10:40]} Kf7 {[%emt 0:01:25]} 20. Bxf6 {[%emt 0:02:35]} Bxf6 {[%emt 0:03:27]} 21. Rd7+ {[%emt 0:00:18]} Kg8 {[%emt 0:01:32]} 22. Nc7 {[%emt 0:11:27]} Rh7 {[%emt 0:02:01]} 23. Rxh7 {[%emt 0:00:58]} Kxh7 {[%emt 0:00:06]} 24. Nxa8 {[%emt 0:00:12]} Qxa8 {[%emt 0:00:06]} 25. Rd1 {[%emt 0:00:24]} Qc6 {[%emt 0:00:13]} 26. Qd3 {[%emt 0:00:37]} Qc5 {[%emt 0:04:22]} 27. Qe3 {[%emt 0:01:03]} Qe7 {[%emt 0:00:44] aiming for ...Bg5.} 28. g3 {[%emt 0:02:09][%cal Bg2g3,Bg3f4][%mdl 32]} Nc6 {[%emt 0:00:53]} 29. Kb1 {[%emt 0:02:53]} Bg7 {[%emt 0:01:39]} 30. f4 {[%emt 0:00:50]} exf4 {[%emt 0:01:01]} 31. gxf4 {[%emt 0:00:21]} Qh4 {[%emt 0:00:28]} 32. Qg3 {[%emt 0:00:21]} Qf6 {[%emt 0:00:37]} (32... Qxg3 $142 33. hxg3 e5) 33. a3 {[%emt 0:02:24]} Na5 {[%emt 0:01:23][%cal Bc6a5,Ba5c4,Bc4e3][%mdl 32]} 34. Qg5 {[%emt 0:01:18]} Qf7 $2 {[%emt 0:00:47]} (34... Qxg5 35. fxg5 Nc4) 35. e5 {[%emt 0:00:49]} Qb7 {[%emt 0:07:15]} 36. Rg1 {[%emt 0:00:51]} Qf7 {[%emt 0:00:27]} 37. Ne4 {[%emt 0:00:13] Qd8 is the strong threat.} Nc4 {[%emt 0:01:22]} 38. Nf6+ {[%emt 0:02:53]} Bxf6 {[%emt 0:02:03]} 39. Qxf6 {[%emt 0:00:35][%mdl 4096] Endgame KQR-KQN} (39. exf6 Nd2+ 40. Ka1 Nf3 $11) 39... Qe8 {[%emt 0:00:48]} 40. Kc1 {[%emt 0:06:53]} (40. Rd1 $142) 40... Ne3 {[%emt 0:00:44]} 41. Qg5 {[%emt 0:02:47]} Qf7 {[%emt 0:00:40]} 42. Kb1 {[%emt 0:01:46]} Nd5 {[%emt 0:00:23]} 43. c4 {[%emt 0:00:54]} Ne3 {[%emt 0:00:34]} 44. b3 {[%emt 0:00:30]} Ng4 {[%emt 0:00:22]} 45. Rd1 {[%emt 0:01:42]} Qb7 {[%emt 0:00:32]} 46. Qd8 {[%emt 0:00:11] Black must now prevent Rd7+.} Qe4+ {[%emt 0:00:13]} 47. Kb2 {[%emt 0:00:40] White threatens Rd7+ and mate.} Qxf4 {[%emt 0:00:23]} 48. Qd7+ {[%emt 0:00:59]} (48. Rd7+ $142 Kh6 49. h4 (49. Rxa7 Qxh2+ 50. Kc3 Qxe5+ 51. Qd4 h4 $11) 49... Qxe5+ 50. Ka2 Qe2+ 51. Rd2 (51. Kb1 Qf1+ 52. Ka2 Qe2+ 53. Rd2 Qe5 $18)) 48... Kh6 {[%emt 0:00:24]} 49. Qd2 {[%emt 0:00:22]} ({Inferior is} 49. Qxa7 Qxe5+ 50. Kb1 Qe4+ 51. Kc1 (51. Ka1 Qe5+ 52. Kb1 Qe4+ 53. Ka1 Qe5+ 54. Kb1 $11) 51... Qe3+ 52. Kc2 (52. Kb2 $2 Qe2+ 53. Kc3 Qxd1 $19) 52... Qe4+ 53. Kc1 Qf4+ 54. Kb2 (54. Kb1 Qf3 $11) 54... Qe5+ 55. Kb1 Qe4+ 56. Kc1 $11 (56. Ka1 Qe5+ 57. Kb1 $11)) (49. Qxe6 $6 Qf2+ 50. Kb1 (50. Ka1 Ne3 $11) 50... Qf3 $14) 49... Ne3 $2 {[%emt 0:00:31]} (49... g5 $16 {was necessary.}) 50. Ka2 {[%emt 0:00:17]} g5 {[%emt 0:00:39]} 51. Re1 {[%emt 0:00:10]} Ng4 {[%emt 0:00:53]} 52. Qxf4 {[%emt 0:00:07]} gxf4 {[%emt 0:00:01] [#]} 53. b4 $1 {[%emt 0:00:40][%cal Bb3b4,Bb4c5,Bc5c6,Bc6c7][%mdl 32] Threatens to win with c5.} Kg5 $2 {[%emt 0:00:35] [#]} (53... f3 54. c5 Nxe5) 54. c5 $1 {[%emt 0:00:18] Strongly threatening c6.} bxc5 {[%emt 0:00:41]} 55. bxc5 {[%emt 0:00:06]} Kf5 {[%emt 0:00:40]} 56. c6 {[%emt 0:00:09] Threatening mate with c7.} f3 {[%emt 0:00:39]} 57. c7 {[%emt 0:00:07] White took control after the opening.  Weighted Error Value: White=0.48/Black=0.69} 1-0

[Event "Asian Amateur-ch Open 2022"]
[Site "Muscat"]
[Date "2022.10.04"]
[Round "8.5"]
[White "Dadabaev, Zhanybek"]
[Black "Velavaa Ragavesh"]
[Result "1-0"]
[ECO "A96"]
[WhiteElo "1902"]
[BlackElo "1698"]
[Annotator "TA"]
[PlyCount "249"]
[EventDate "2022.09.29"]
[EventType "swiss"]
[EventCountry "OMN"]
[SourceTitle "playchess.com"]
[Source "ChessBase"]
[SourceQuality "1"]
[TimeControl "5400+30"]

{[%evp 16,248,44,22,22,29,5,-21,-14,-116,-60,-59,37,-7,57,44,44,39,45,26,27,29,70,76,68,39,79,44,56,54,381,386,401,393,405,404,396,393,364,345,342,298,308,302,329,327,289,0,264,0,329,320,333,337,325,303,329,348,344,339,402,394,394,394,486,486,535,482,577,463,548,328,329,329,329,333,349,295,364,349,349,349,349,261,262,272,322,272,264,264,349,258,288,189,288,288,282,256,248,153,153,153,153,153,160,160,883,788,875,660,669,474,461,438,637,485,485,160,160,160,538,477,393,160,477,477,477,420,868,477,857,151,476,474,466,466,473,466,459,451,451,447,433,383,452,451,476,468,447,406,267,411,377,213,312,183,835,687,596,164,185,185,634,606,781,490,548,458,845,843,921,458,458,244,458,458,458,458,458,458,810,835,834,803,806,802,795,795,794,476,476,0,463,455,915,905,889,850,845,659,29983,29984,29984,29981,29981,29982,29982,29983,29984,29985,29985,29986,29986,29986,29986,29987,29987,29988,29988,29987,29991,29991,29992,29993,29993,29994,29994,29995,29995,29996,29996,29997,29998,29998,29999]} 1. d4 {[%emt 0:00:02]} f5 {[%emt 0:00:34]} 2. c4 {[%emt 0:00:09]} e6 {[%emt 0:00:21]} 3. Nf3 {[%emt 0:00:41]} Nf6 {[%emt 0:00:35]} 4. g3 {[%emt 0:00:34]} Be7 {[%emt 0:00:30]} 5. Bg2 {[%emt 0:00:08]} O-O {[%emt 0:00:29]} 6. Nc3 {[%emt 0:00:04]} d6 {[%emt 0:00:34]} 7. O-O {[%emt 0:00:13]} Ne4 {[%emt 0:00:38]} 8. Qc2 {[%emt 0:00:37]} Nxc3 {[%emt 0:00:35]} 9. bxc3 {[%emt 0:03:52]} Nc6 {[%emt 0:02:47] A96: Classical Dutch: Fluid Systems: Early deviations.} 10. d5 {[%emt 0:03:33]} Na5 {[%emt 0:03:07]} 11. Qa4 {[%emt 0:18:15]} b6 {[%emt 0:20:41] [#] The position is equal.} 12. Rd1 $146 {[%emt 0:40:29]} (12. dxe6 $1 $11 {keeps the balance.} Rb8 13. Nd4) ({Predecessor:} 12. Nd4 Bd7 13. Qc2 e5 14. Nc6 Nxc6 15. dxc6 Be6 16. Bd5 Bxd5 17. cxd5 Qe8 18. a4 {0-1 (26) Babula,V (2545)-Svoboda,S (2441) Slovakia 2016}) 12... e5 {[%emt 0:06:07]} (12... Bd7 $17 13. Qc2 (13. Qb4 c5 $17) 13... e5) 13. Nxe5 {[%emt 0:06:08]} Bf6 {[%emt 0:21:58]} ({Better is} 13... dxe5 $15 14. d6 e4 15. dxe7 Qxe7) 14. Nd3 {[%emt 0:01:31][%cal Oc4c5]} Bxc3 {[%emt 0:01:05]} (14... g5 $11) 15. Rb1 $36 {[%emt 0:01:41][%mdl 2048] White is more active.} Qe8 {[%emt 0:05:12]} 16. Qc2 {[%emt 0:06:16]} Bf6 {[%emt 0:02:30]} 17. Bd2 {[%emt 0:05:46]} Nb7 {[%emt 0:13:44]} 18. Re1 {[%emt 0:00:40]} Nc5 {[%emt 0:00:19] Prevents e4.} 19. Nxc5 {[%emt 0:00:17]} bxc5 {[%emt 0:00:07]} 20. h4 {[%emt 0:01:49]} Qg6 {[%emt 0:02:30]} 21. Qa4 {[%emt 0:02:54] Strongly threatening Qc6. White is more active.} (21. Ba5 $5 {[%cal Ra5c7]}) 21... f4 {[%emt 0:05:39]} 22. Bxf4 {[%emt 0:00:13]} Bxh4 $2 {[%emt 0:00:11][%mdl 8192]} 23. Qc6 $1 $18 {[%emt 0:02:25]} Rxf4 {[%emt 0:04:21]} 24. Qxa8 {[%emt 0:00:16]} (24. gxf4 Bh3 $1 25. Qxa8+ Kf7) 24... Rf8 {[%emt 0:00:28][%cal Oh4g3]} 25. Rb8 {[%emt 0:02:33]} (25. gxh4 {gets mated.} Bh3) 25... Qf5 {[%emt 0:02:03]} 26. Rf1 {[%emt 0:00:01]} Bf6 {[%emt 0:00:45]} 27. Qxa7 {[%emt 0:00:55]} Qd7 {[%emt 0:00:24]} 28. Qa5 {[%emt 0:01:07]} h5 {[%emt 0:00:13]} 29. Qb5 {[%emt 0:00:37]} Qg4 {[%emt 0:00:30]} 30. Bf3 {[%emt 0:00:42]} Qh3 {[%emt 0:00:14]} 31. Bg2 {[%emt 0:00:18]} Qg4 {[%emt 0:00:05]} 32. Bf3 {[%emt 0:00:04]} Qh3 {[%emt 0:00:36]} 33. Qb1 {[%emt 0:01:03]} h4 {[%emt 0:01:01]} 34. Bg2 {[%emt 0:00:24]} Qg4 {[%emt 0:00:06]} 35. Qe4 {[%emt 0:00:21]} Qxe4 {[%emt 0:02:53]} 36. Bxe4 {[%emt 0:00:01]} hxg3 {[%emt 0:00:06]} 37. e3 {[%emt 0:01:27]} ({Weaker is} 37. fxg3 Bd4+ 38. Kh2 Rxf1 $16) 37... Bg5 {[%emt 0:00:57]} 38. f4 {[%emt 0:00:16][%cal Bf2f4,Bf4f5][%mdl 32]} Bf6 {[%emt 0:00:14]} 39. Rf3 {[%emt 0:00:36]} Bh4 {[%emt 0:00:50]} 40. a4 {[%emt 0:00:14]} Kf7 {[%emt 0:00:24]} 41. a5 {[%emt 0:00:24]} g2 {[%emt 0:00:55]} 42. f5 {[%emt 0:00:45]} Be1 {[%emt 0:00:24]} 43. a6 {[%emt 0:00:43]} Bxa6 {[%emt 0:00:05]} 44. Rxf8+ {[%emt 0:00:06]} Kxf8 {[%emt 0:00:04][%mdl 4096] Endgame KRB-KB} 45. Bd3 {[%emt 0:00:09]} ({Not} 45. Kxg2 Bxc4 46. Rh3 Ke7 $14) 45... Bc3 {[%emt 0:00:07]} 46. Kxg2 {[%emt 0:00:11]} Bf6 {[%emt 0:00:14]} 47. Rf1 {[%emt 0:00:13]} Ke7 {[%emt 0:00:05]} 48. Kf3 {[%emt 0:00:12]} Bc8 {[%emt 0:00:15]} 49. Rh1 {[%emt 0:00:12]} Bd7 {[%emt 0:00:17]} 50. Bc2 {[%emt 0:00:40]} Be8 {[%emt 0:00:13]} 51. Rb1 {[%emt 0:01:57]} Bh5+ {[%emt 0:00:58]} 52. Ke4 {[%emt 0:00:49]} Be8 {[%emt 0:01:41]} 53. Rb8 {[%emt 0:00:21]} g6 {[%emt 0:01:23]} 54. Bd1 {[%emt 0:00:33]} gxf5+ {[%emt 0:00:09]} (54... Bg5 $142 55. Bg4 c6 56. dxc6 Bxc6+ 57. Kd3 Be8 58. Rb7+ Kf6) 55. Kxf5 {[%emt 0:00:04][%cal Ob8e8] Threatening mate with Rxe8+!} Bd7+ {[%emt 0:00:05]} 56. Ke4 {[%emt 0:00:20]} Be5 {[%emt 0:00:36]} 57. Bh5 {[%emt 0:00:18]} c6 {[%emt 0:01:25]} 58. Rb7 {[%emt 0:00:54] White threatens dxc6 and mate.} Kd8 {[%emt 0:01:04]} 59. Bf7 {[%emt 0:00:34]} Bh3 {[%emt 0:00:58]} 60. Be6 {[%emt 0:00:45]} cxd5+ $2 {[%emt 0:00:15]} (60... Bg2+ $16 61. Kf5 cxd5 62. Bxd5 Bh3+ 63. Ke4 Bg2+ 64. Kd3 Bh3) 61. Kxd5 {[%emt 0:00:22]} Bf1 {[%emt 0:00:46]} 62. e4 {[%emt 0:00:43]} Bd3 {[%emt 0:00:16]} 63. Rb3 {[%emt 0:00:31]} Bc2 {[%emt 0:00:13]} 64. Rb8+ {[%emt 0:00:35]} Ke7 {[%emt 0:00:31]} (64... Kc7 $142) 65. Rb7+ {[%emt 0:00:06]} Kd8 {[%emt 0:00:06]} 66. Bf5 $2 {[%emt 0:00:12]} (66. Rd7+ $18 {has better winning chances.} Ke8 67. Bf5) 66... Ba4 $16 {[%emt 0:00:42]} 67. Ra7 {[%emt 0:00:55]} Bb3 $2 {[%emt 0:00:16]} (67... Be8 $16 {is more resistant.} 68. Bg4 Bg6) 68. Ra3 {[%emt 0:00:23]} Bd1 {[%emt 0:00:48]} 69. Kc6 {[%emt 0:00:54]} (69. Ra5 $18 {and White stays clearly on top.}) 69... Be2 $2 {[%emt 0:00:21] [#]} (69... Ke7 $16 {is a better chance.} 70. Kd5 Kf6) 70. Be6 $1 $18 {[%emt 0:00:01]} Bh5 {[%emt 0:00:32]} 71. Ra7 {[%emt 0:00:53]} Bf3 {[%emt 0:01:01]} (71... Be8+ $142 72. Kd5 Bf4) 72. Bd5 {[%emt 0:00:23] And now Rd7+ would win.} Bh5 {[%emt 0:00:14]} (72... Bg4 $142 73. Rc7 Bh3) 73. Ra8+ {[%emt 0:00:57]} Ke7 {[%emt 0:00:13]} 74. Ra3 {[%emt 0:00:35]} Bg4 {[%emt 0:00:47]} 75. Ra7+ {[%emt 0:00:26]} Kd8 {[%emt 0:00:06]} 76. Rf7 {[%emt 0:00:23]} Bh3 {[%emt 0:01:15]} 77. Rh7 {[%emt 0:00:38]} Bg4 {[%emt 0:00:06]} 78. Rh4 {[%emt 0:00:12]} Bc8 {[%emt 0:00:51]} 79. Rh6 {[%emt 0:00:42]} Bd7+ {[%emt 0:00:28]} 80. Kb6 {[%emt 0:00:05]} Bg4 {[%emt 0:00:10]} 81. Be6 {[%emt 0:00:24]} Bf3 {[%emt 0:00:37]} 82. Bf5 {[%emt 0:00:01]} Be2 {[%emt 0:00:26]} 83. Kb5 $1 {[%emt 0:00:09]} Bd3 {[%emt 0:00:09]} 84. Rh3 {[%emt 0:01:29]} (84. Rh7 $142) 84... Bf1 {[%emt 0:00:29]} (84... Be2 $142 85. Rh7 Ke8) 85. Rh7 {[%emt 0:00:09]} (85. Re3 $142) 85... Bd3 $2 {[%emt 0:00:15]} (85... Be2 86. Bg6 Bg4) 86. Bg6 {[%emt 0:00:38]} Be2 {[%emt 0:01:30]} 87. Bf7 $2 {[%emt 0:00:21]} (87. Kc6) 87... Bd3 {[%emt 0:00:49]} 88. Bd5 {[%emt 0:00:01]} Bc2 $2 {[%emt 0:00:01]} (88... Be2 89. Kc6 Bg4) 89. Rh5 {[%emt 0:00:12]} Bf4 {[%emt 0:01:15]} 90. Rf5 {[%emt 0:00:27]} Bg3 {[%emt 0:00:09]} 91. Kb6 {[%emt 0:00:45] Threatens to win with Rf8+.} Bd1 {[%emt 0:00:59]} (91... Be5 $142 92. Rf8+ Ke7 93. Rf7+ Ke8) 92. Rf1 {[%emt 0:00:45]} Bc2 {[%emt 0:00:48]} 93. Rf3 {[%emt 0:00:18]} (93. Rc1 $142) 93... Be5 {[%emt 0:00:07]} 94. Bc6 {[%emt 0:00:25]} (94. Rf8+ $142 Kd7 95. Rf7+ Ke8 96. Rf2) 94... Bd1 $2 {[%emt 0:01:14]} (94... Ke7 95. Bd5 Ba4 96. Rf7+ Ke8) 95. Rf8+ {[%emt 0:00:15]} Ke7 {[%emt 0:01:54]} 96. Re8+ Kf6 {[%emt 0:00:00]} 97. Bd5 {[%emt 0:00:34] aiming for Re6+.} Bg4 {[%emt 0:00:00] Inhibits Re6+.} (97... Bg3 $142 98. Rg8 Be5 99. Rf8+ Ke7 100. Rf7+ Kd8) 98. Kc7 {[%emt 0:00:31]} Bh3 {[%emt 0:00:00]} 99. Rh8 {[%emt 0:00:22]} Bg4 {[%emt 0:00:00]} 100. Rh7 {[%emt 0:00:38]} Kg6 {[%emt 0:00:47]} 101. Rf7 {[%emt 0:00:30]} Bh3 {[%emt 0:00:16]} 102. Rf8 {[%emt 0:00:12] Black must now prevent Kc6.} Kg7 {[%emt 0:00:27]} 103. Rf7+ {[%emt 0:01:55]} Kg6 {[%emt 0:00:28]} 104. Kc6 {[%emt 0:00:12]} Bg2 {[%emt 0:00:50]} (104... Bg4 $142 105. Rf2 Kh6) 105. Rf8 {[%emt 0:00:13] White wants to mate with Rg8+.} Bh3 {[%emt 0:00:40] [#]} 106. Rd8 $1 {[%emt 0:00:01]} Kg7 {[%emt 0:00:20]} 107. Rxd6 {[%emt 0:00:07]} Bxd6 {[%emt 0:00:05]} 108. Kxd6 {[%emt 0:00:08] KB-KB. White mates.} Kf8 {[%emt 0:00:02]} 109. Bc6 {[%emt 0:00:35]} Bf1 {[%emt 0:00:18]} 110. Bb5 {[%emt 0:00:43]} Kf7 {[%emt 0:00:22]} 111. e5 {[%emt 0:00:11]} Kg7 {[%emt 0:00:58]} 112. e6 {[%emt 0:00:29]} Be2 {[%emt 0:00:07]} 113. e7 {[%emt 0:00:17]} Bh5 {[%emt 0:00:04]} 114. e8=Q {[%emt 0:00:08]} Bxe8 {[%emt 0:00:03]} 115. Bxe8 {[%emt 0:00:01]} Kf6 {[%emt 0:00:11]} 116. Kxc5 {[%emt 0:00:13]} Ke7 {[%emt 0:00:03]} 117. Bh5 {[%emt 0:00:07]} Kd8 {[%emt 0:00:03]} 118. Kd6 {[%emt 0:00:22]} Kc8 {[%emt 0:00:04]} 119. c5 {[%emt 0:00:08]} Kb8 {[%emt 0:00:11]} 120. Bg4 {[%emt 0:00:05]} Ka7 {[%emt 0:00:06]} 121. c6 {[%emt 0:00:05]} Ka8 {[%emt 0:00:10]} 122. c7 {[%emt 0:00:04]} Kb7 {[%emt 0:00:15]} 123. c8=Q+ {[%emt 0:00:12]} Ka7 {[%emt 0:00:02]} 124. Qc5+ {[%emt 0:00:23]} Ka6 {[%emt 0:00:02]} 125. Bc8# {[%emt 0:00:10] Weighted Error Value: White=0.42/Black=0.32} 1-0

[Event "Asian Amateur-ch Open 2022"]
[Site "Muscat"]
[Date "2022.10.04"]
[Round "8.6"]
[White "Al Amari, Mohammed"]
[Black "Bagheri, Majid"]
[Result "1/2-1/2"]
[ECO "C55"]
[WhiteElo "1646"]
[BlackElo "1870"]
[Annotator "NA RC COMBH"]
[PlyCount "128"]
[EventDate "2022.09.29"]
[EventType "swiss"]
[EventCountry "OMN"]
[SourceTitle "playchess.com"]
[Source "ChessBase"]
[SourceQuality "1"]
[TimeControl "5400+30"]

1. e4 {[%emt 0:00:30]} e5 {[%emt 0:00:09]} 2. Nf3 {[%emt 0:00:23]} Nc6 {[%emt 0:00:21]} 3. Bc4 {[%emt 0:00:49]} Nf6 {[%emt 0:00:19]} 4. Qe2 {[%emt 0:01:47]} Be7 {[%emt 0:00:45]} 5. c3 {[%emt 0:05:43]} O-O {[%emt 0:00:51]} 6. O-O {[%emt 0:00:37]} d6 {[%emt 0:00:26]} 7. h3 {[%emt 0:02:10]} Be6 {[%emt 0:00:14]} 8. Bxe6 {[%emt 0:01:01]} fxe6 {[%emt 0:00:04]} 9. d4 {[%emt 0:00:55]} exd4 {[%emt 0:02:37]} 10. cxd4 {[%emt 0:00:06]} d5 {[%emt 0:00:18]} 11. e5 {[%emt 0:00:57]} Ne4 {[%emt 0:00:17]} 12. Nc3 {[%emt 0:00:22]} Ng5 {[%emt 0:14:25]} 13. Nxg5 {[%emt 0:02:49]} Bxg5 {[%emt 0:00:54]} 14. Qg4 {[%emt 0:02:57]} Rf5 {[%emt 0:01:45]} 15. f4 {[%emt 0:08:12]} Be7 {[%emt 0:13:36]} 16. Be3 {[%emt 0:05:31]} Nb4 {[%emt 0:10:16]} 17. Qd1 {[%emt 0:09:29]} Qd7 {[%emt 0:06:33]} 18. a3 {[%emt 0:01:58]} Na6 {[%emt 0:00:07]} 19. b4 {[%emt 0:01:42]} Raf8 {[%emt 0:01:47]} 20. Qd3 {[%emt 0:01:37]} Nb8 {[%emt 0:01:36]} 21. Rac1 {[%emt 0:01:17]} c6 {[%emt 0:04:18]} 22. Ne2 {[%emt 0:04:48]} R5f7 {[%emt 0:00:52]} 23. g4 {[%emt 0:01:50]} g6 {[%emt 0:00:20]} 24. Ng3 {[%emt 0:01:05]} Bh4 {[%emt 0:00:19]} 25. Kh2 {[%emt 0:00:28]} Bxg3+ {[%emt 0:01:38]} 26. Kxg3 {[%emt 0:00:12]} Qe7 {[%emt 0:01:18]} 27. h4 {[%emt 0:00:54]} Rg7 {[%emt 0:02:22]} 28. Kh3 {[%emt 0:01:22]} Nd7 {[%emt 0:02:47]} 29. Rc2 {[%emt 0:02:24]} Nb6 {[%emt 0:02:01]} 30. Rcf2 {[%emt 0:00:32]} h5 {[%emt 0:03:34]} 31. Rg2 {[%emt 0:04:04]} hxg4+ {[%emt 0:00:28]} 32. Rxg4 {[%emt 0:00:14]} Rf5 {[%emt 0:00:13]} 33. Rfg1 {[%emt 0:00:38]} Kf7 {[%emt 0:00:25]} 34. Rg5 {[%emt 0:06:50]} Rh7 {[%emt 0:00:34]} 35. Bf2 {[%emt 0:00:56]} Rh6 {[%emt 0:00:36]} 36. Qg3 {[%emt 0:01:45]} Rxg5 {[%emt 0:01:07]} 37. fxg5 {[%emt 0:02:23]} Rh8 {[%emt 0:08:25]} 38. Qd3 {[%emt 0:00:43]} Kg7 {[%emt 0:00:30]} 39. Rg3 {[%emt 0:00:48]} Rf8 {[%emt 0:00:21]} 40. Rf3 {[%emt 0:00:19]} Rxf3+ {[%emt 0:01:33]} 41. Qxf3 {[%emt 0:00:08]} Qf7 {[%emt 0:05:08]} 42. Qf6+ {[%emt 0:00:41]} Kg8 {[%emt 0:00:32]} 43. Kg4 {[%emt 0:07:25]} Nd7 {[%emt 0:00:35]} 44. Qxf7+ {[%emt 0:00:14]} Kxf7 {[%emt 0:00:01]} 45. h5 {[%emt 0:00:17]} Nb6 {[%emt 0:03:19]} 46. Be3 {[%emt 0:02:27]} Na4 {[%emt 0:00:19]} 47. h6 {[%emt 0:00:18]} b5 {[%emt 0:00:21]} 48. Kf3 {[%emt 0:01:07]} Nc3 {[%emt 0:01:56]} 49. Bc1 {[%emt 0:01:04]} a6 {[%emt 0:00:02]} 50. Ke3 {[%emt 0:00:13]} Ne4 {[%emt 0:00:02]} 51. Kd3 {[%emt 0:00:32]} Nf2+ {[%emt 0:00:15]} 52. Kc3 {[%emt 0:01:07]} Ne4+ {[%emt 0:00:36]} 53. Kb3 {[%emt 0:00:13]} Ng3 {[%emt 0:00:32]} 54. a4 {[%emt 0:01:01]} Nf5 {[%emt 0:01:01]} 55. Bb2 {[%emt 0:01:44]} Kg8 {[%emt 0:00:43]} 56. Kc2 {[%emt 0:02:55]} Ng3 {[%emt 0:00:22]} 57. axb5 {[%emt 0:00:46]} cxb5 {[%emt 0:00:12]} 58. Kd3 {[%emt 0:00:12]} Nf5 {[%emt 0:00:32]} 59. Bc1 {[%emt 0:00:15]} Ne7 {[%emt 0:00:28]} 60. Be3 {[%emt 0:00:18]} Kh7 {[%emt 0:00:31]} 61. Bc1 {[%emt 0:00:06]} Nc6 {[%emt 0:00:18]} 62. Bd2 {[%emt 0:00:05]} Nb8 {[%emt 0:00:25]} 63. Bc1 {[%emt 0:00:06]} Nd7 {[%emt 0:00:16]} 64. Bd2 {[%emt 0:00:15]} Nb6 {[%emt 0:00:21]} 1/2-1/2